fUSD/lending_fUSD_20240523
["ID","MTS","AMOUNT","RATE_DAILY","PERIOD"]
[327776384,1716474641780,-500.0,0.00022739,5]
[327776385,1716474641790,-2092.43,0.00022744,2]
[327776386,1716474641801,-196.79428385,0.00022757,2]
[327776387,1716474641811,-432.74590031,0.00022767,2]
[327776388,1716474641821,-689.14,0.00022769,2]
[327776389,1716474641831,-1366.59765781,0.00022773,3]
[327776390,1716474641848,-41.08234219,0.00022773,3]
[327776391,1716474641858,-500.0,0.00022773,3]
[327776392,1716474641868,-500.0,0.00022773,3]
[327776393,1716474641878,-859.25,0.00022773,3]
[327776394,1716474641889,-500.0,0.00022773,3]
[327776395,1716474641899,-500.0,0.00022773,3]
[327776396,1716474641908,-500.0,0.00022773,3]
[327776397,1716474641918,-747.0361452,0.00022773,3]
[327776445,1716474643561,2227.06714512,0.00019368,2]
[327776479,1716474644491,-2100.0,0.00021226,2]
[327776480,1716474644502,-2686.1238548,0.00022773,3]
[327776481,1716474644514,-1411.57,0.00022773,3]
[327776482,1716474644524,-507.91558824,0.00022773,3]
[327776483,1716474644536,-564.11,0.00022773,3]
[327776484,1716474644546,-1217.67,0.00022773,3]
[327776485,1716474644557,-1147.11714083,0.00022792,2]
[327776486,1716474644567,-663.90080037,0.00022796,2]
[327776488,1716474644577,-1330.92640261,0.00022797,2]
[327776490,1716474644587,-152.73750917,0.00022798,2]
[327776492,1716474644600,-155.08702744,0.00022804,2]
[327776495,1716474644610,-1147.11714083,0.00022808,2]
[327776498,1716474644620,-500.0,0.00022808,5]
[327776500,1716474644630,-500.0,0.00022808,5]
[327776502,1716474644640,-500.0,0.00022808,5]
[327776504,1716474644651,-612.95,0.00022808,5]
[327776506,1716474644661,-1629.21,0.00022808,5]
[327776508,1716474644671,-1165.96,0.00022808,5]
[327776510,1716474644681,-500.0,0.00022808,5]
[327776512,1716474644690,-500.0,0.00022808,5]
[327776514,1716474644700,-976.18,0.00022808,5]
[327776516,1716474644708,-500.0,0.00022808,5]
[327776518,1716474644718,-500.0,0.00022808,5]
[327776519,1716474644728,-1407.58,0.00022808,5]
[327776521,1716474644737,-599.75,0.00022821,5]
[327776523,1716474644751,-500.0,0.00022821,5]
[327776525,1716474644762,-500.0,0.00022821,5]
[327776528,1716474644777,-842.03,0.00022821,5]
[327776529,1716474644786,-677.55,0.00022821,5]
[327776531,1716474644796,-1687.84,0.00022821,5]
[327776533,1716474644806,-829.03,0.00022821,5]
[327776535,1716474644818,-2079.91,0.00022821,5]
[327776537,1716474644828,-1221.63,0.00022821,5]
[327776539,1716474644839,-825.32,0.00022821,5]
[327776541,1716474644853,-733.32,0.00022821,5]
[327776543,1716474644864,-2305.32,0.00022821,5]
[327776546,1716474644876,-1069.99,0.00022821,5]
[327776548,1716474644886,-157.47813498,0.00022854,2]
[327776550,1716474644896,-196.79428385,0.00022893,2]
[327776551,1716474644906,-500.0,0.00022895,5]
[327776553,1716474644916,-918.1,0.00022895,5]
[327776555,1716474644926,-718.72,0.00022895,5]
[327776557,1716474644935,-500.0,0.00022895,5]
[327776559,1716474644945,-706.65,0.00022896,5]
[327776560,1716474644954,-946.25,0.00022896,5]
[327776561,1716474644965,-749.7,0.00022896,5]
[327776562,1716474644975,-13459.97,0.00022896,5]
[327776563,1716474644984,-500.0,0.00022896,5]
[327776564,1716474644994,-732.5,0.00022896,5]
[327776565,1716474645003,-504.6,0.00022896,5]
[327776566,1716474645013,-500.0,0.00022896,5]
[327776567,1716474645022,-500.0,0.00022896,5]
[327776568,1716474645031,-500.0,0.00022896,5]
[327776569,1716474645040,-599.54,0.00022896,5]
[327776570,1716474645051,-660.2,0.00022896,5]
[327776571,1716474645061,-241.72210903,0.00022897,2]
[327776572,1716474645071,-500.0,0.00022897,2]
[327776573,1716474645081,-500.0,0.00022897,2]
[327776574,1716474645094,-579.38,0.00022897,2]
[327776575,1716474645104,-500.0,0.00022897,2]
[327776576,1716474645114,-500.0,0.00022897,2]
[327776577,1716474645124,-500.0,0.00022897,2]
[327776578,1716474645133,-500.0,0.00022897,2]
[327776579,1716474645142,-500.0,0.00022897,2]
[327776580,1716474645151,-267.55,0.00022897,2]
[327776581,1716474645161,-500.0,0.00022897,2]
[327776582,1716474645171,-500.0,0.00022897,2]
[327776583,1716474645180,-500.0,0.00022897,2]
[327776584,1716474645190,-514.18412695,0.00022897,2]
[327776585,1716474645201,-505.40562606,0.00022897,2]
[327776586,1716474645211,-500.0,0.00022897,2]
[327776587,1716474645220,-737.15,0.00022897,2]
[327776588,1716474645230,-500.0,0.00022897,2]
[327776589,1716474645239,-513.3926728,0.00022897,2]
[327776590,1716474645249,-500.0,0.00022897,2]
[327776591,1716474645258,-500.0,0.00022897,2]
[327776592,1716474645267,-500.0,0.00022897,2]
[327776593,1716474645276,-500.0,0.00022897,2]
[327776594,1716474645286,-500.0,0.00022897,2]
[327776595,1716474645296,-516.15596979,0.00022897,2]
[327776596,1716474645305,-1315.11,0.00022897,2]
[327776597,1716474645315,-593.25338978,0.00022897,2]
[327776598,1716474645324,-500.0,0.00022897,2]
[327776599,1716474645333,-732.48,0.00022897,2]
[327776600,1716474645346,-500.0,0.00022897,2]
[327776601,1716474645355,-595.68567061,0.00022897,2]
[327776602,1716474645364,-500.0,0.00022897,2]
[327776603,1716474645374,-500.0,0.00022897,2]
[327776604,1716474645383,-500.0,0.00022897,2]
[327776605,1716474645392,-500.0,0.00022897,2]
[327776606,1716474645402,-500.0,0.00022897,2]
[327776607,1716474645412,-500.0,0.00022897,2]
[327776608,1716474645421,-500.0,0.00022897,2]
[327776609,1716474645431,-500.0,0.00022897,2]
[327776610,1716474645440,-555.92725353,0.00022897,2]
[327776611,1716474645449,-500.0,0.00022897,2]
[327776612,1716474645459,-1332.44,0.00022897,2]
[327776613,1716474645469,-617.1,0.00022897,2]
[327776614,1716474645478,-500.0,0.00022897,2]
[327776615,1716474645487,-500.0,0.00022897,2]
[327776616,1716474645496,-500.0,0.00022897,2]
[327776617,1716474645506,-1056.78,0.00022897,2]
[327776618,1716474645516,-2579.0,0.00022897,2]
[327776619,1716474645526,-2219.23,0.00022897,2]
[327776620,1716474645536,-500.0,0.00022897,2]
[327776621,1716474645546,-3911.65,0.00022897,2]
[327776622,1716474645556,-914.43,0.00022897,2]
[327776623,1716474645567,-500.0,0.00022897,2]
[327776624,1716474645577,-2418.3,0.00022897,2]
[327776625,1716474645587,-3511.33,0.00022897,2]
[327776626,1716474645603,-455.66132131,0.00022897,2]
[327776627,1716474645613,-820.48,0.00022897,2]
[327776628,1716474645622,-500.0,0.00022897,2]
[327776629,1716474645632,-500.0,0.00022897,2]
[327776630,1716474645642,-500.0,0.00022897,2]
[327776631,1716474645652,-6557.03,0.00022897,2]
[327776632,1716474645661,-969.47,0.00022897,2]
[327776633,1716474645671,-6030.12,0.00022897,2]
[327776634,1716474645680,-512.29847798,0.00022897,2]
[327776635,1716474645690,-500.0,0.00022897,2]
[327776636,1716474645700,-500.0,0.00022897,2]
[327776637,1716474645710,-500.0,0.00022897,2]
[327776638,1716474645720,-500.0,0.00022897,2]
[327776639,1716474645730,-500.0,0.00022897,2]
[327776640,1716474645740,-500.0,0.00022897,2]
[327776641,1716474645750,-500.0,0.00022897,2]
[327776642,1716474645766,-512.56738136,0.00022897,2]
[327776643,1716474645776,-506.39223663,0.00022897,2]
[327776644,1716474645787,-962.14,0.00022897,2]
[327776645,1716474645798,-500.0,0.00022897,2]
[327776646,1716474645808,-500.0,0.00022897,2]
[327776647,1716474645819,-252.61867495,0.00022897,2]
[327776648,1716474645829,-2690.75,0.00022897,2]
[327776649,1716474645840,-500.0,0.00022897,2]
[327776650,1716474645852,-512.22226546,0.00022897,2]
[327776651,1716474645862,-500.0,0.00022897,2]
[327776652,1716474645872,-1612.03,0.00022897,2]
[327776653,1716474645881,-678.84,0.00022897,2]
[327776654,1716474645891,-3918.5849406,0.00022898,2]
[327776655,1716474645905,-37189.379148,0.00022898,2]
[327776656,1716474645917,-19142.83261951,0.00022898,2]
[327776657,1716474645926,-9306.77657419,0.00022898,2]
[327776658,1716474645940,-500.6964493,0.00022898,2]
[327776659,1716474645951,-20206.50592,0.00022898,2]
[327776660,1716474645963,-2758.46612103,0.00022898,2]
[327776661,1716474645976,-10311.60000036,0.00022898,2]
[327776662,1716474645988,-4000.0,0.00022898,2]
[327776663,1716474646000,-2130.22655971,0.00022898,2]
[327776664,1716474646012,-700.56023747,0.00022898,2]
[327776665,1716474646024,-10335.964846,0.00022898,2]
[327776666,1716474646034,-161.44222683,0.00022898,2]
[327776667,1716474646044,-160.107484,0.00022929,2]
[327776668,1716474646054,-196.79428385,0.00022949,2]
[327776669,1716474646064,-150.2119787,0.0002297,2]
[327776670,1716474646074,-196.79428385,0.00022973,2]
[327776671,1716474646084,-637.77075383,0.00022977,2]
[327776672,1716474646096,-35037.14292889,0.00022995,2]
[327776673,1716474646334,-6815.2,0.00022995,2]
[327776674,1716474646348,-681.55,0.00022995,2]
[327776675,1716474646360,-1987.63949964,0.00022995,2]
[327776706,1716474646752,-12179.66173985,0.00022995,2]
[327776708,1716474646765,-1026.04080833,0.00022995,2]
[327776715,1716474646867,-2388.475,0.00022995,2]
[327776717,1716474646879,-135.08673135,0.00022995,2]
[327776719,1716474646890,-200.00544757,0.00023,2]
[327776722,1716474646899,-181.15673232,0.00023,2]
[327776745,1716474647225,-404.62358424,0.00021225,2]
[327776746,1716474647235,-2668.84326768,0.00023,2]
[327776747,1716474647245,-569.33232199,0.00023,2]
[327776748,1716474647256,-1430.66767801,0.00023,2]
[327776749,1716474647267,-150.0,0.00023,3]
[327776750,1716474647277,-500.0,0.00023013,6]
[327776752,1716474647287,-500.0,0.00023013,6]
[327776754,1716474647297,-500.0,0.00023013,6]
[327776756,1716474647307,-500.0,0.00023013,6]
[327776757,1716474647317,-500.0,0.00023013,6]
[327776758,1716474647327,-500.0,0.00023013,6]
[327776759,1716474647338,-211.78175877,0.00023013,6]
[327776760,1716474647352,-500.0,0.00023013,6]
[327776761,1716474647362,-687.08,0.00023013,6]
[327776762,1716474647372,-500.0,0.00023013,6]
[327776763,1716474647382,-308.99268604,0.00023013,6]
[327776764,1716474647391,-500.0,0.00023013,6]
[327776765,1716474647400,-500.0,0.00023013,6]
[327776766,1716474647411,-500.0,0.00023013,6]
[327776767,1716474647421,-500.0,0.00023013,6]
[327776768,1716474647431,-500.0,0.00023013,6]
[327776769,1716474647441,-335.97751058,0.00023013,6]
[327776770,1716474647452,-1309.59,0.00023013,6]
[327776771,1716474647462,-500.0,0.00023013,6]
[327776772,1716474647472,-500.0,0.00023013,6]
[327776773,1716474647482,-500.0,0.00023013,6]
[327776774,1716474647492,-723.04,0.00023013,6]
[327776775,1716474647502,-6622.34,0.00023013,6]
[327776776,1716474647511,-500.0,0.00023013,6]
[327776777,1716474647521,-500.0,0.00023013,6]
[327776778,1716474647532,-2046.21,0.00023013,6]
[327776779,1716474647542,-1289.07,0.00023013,6]
[327776780,1716474647552,-500.0,0.00023013,6]
[327776781,1716474647561,-597.78,0.00023013,6]
[327776782,1716474647571,-598.18,0.00023013,6]
[327776783,1716474647580,-500.0,0.00023013,6]
[327776784,1716474647590,-500.0,0.00023013,6]
[327776785,1716474647603,-738.59,0.00023013,6]
[327776786,1716474647613,-150.97582733,0.00023013,2]
[327776787,1716474647623,-500.15,0.00023013,6]
[327776788,1716474647633,-500.0,0.00023013,6]
[327776789,1716474647642,-500.0,0.00023013,6]
[327776790,1716474647652,-5097.04,0.00023013,6]
[327776791,1716474647662,-600.8876525,0.00023013,6]
[327776792,1716474647672,-500.0,0.00023013,6]
[327776793,1716474647682,-500.0,0.00023013,6]
[327776794,1716474647692,-525.39,0.00023013,6]
[327776795,1716474647702,-500.0,0.00023013,6]
[327776796,1716474647712,-500.0,0.00023013,6]
[327776797,1716474647722,-500.0,0.00023013,6]
[327776798,1716474647732,-500.0,0.00023013,6]
[327776799,1716474647743,-500.0,0.00023013,6]
[327776800,1716474647753,-500.0,0.00023013,6]
[327776801,1716474647767,-500.0,0.00023013,6]
[327776802,1716474647776,-500.0,0.00023013,6]
[327776803,1716474647788,-500.0,0.00023013,6]
[327776804,1716474647799,-1000.0,0.00023013,6]
[327776805,1716474647809,-500.0,0.00023013,6]
[327776806,1716474647819,-500.0,0.00023013,6]
[327776807,1716474647829,-634.08569944,0.00023013,6]
[327776808,1716474647839,-667.82,0.00023013,6]
[327776809,1716474647852,-500.0,0.00023013,6]
[327776810,1716474647861,-500.0,0.00023013,6]
[327776811,1716474647871,-500.0,0.00023013,6]
[327776812,1716474647882,-648.69,0.00023013,6]
[327776813,1716474647892,-500.0,0.00023013,6]
[327776814,1716474647902,-500.0,0.00023013,6]
[327776815,1716474647912,-150.21197871,0.0002304,2]
[327776816,1716474647922,-152.96549234,0.00023044,2]
[327776817,1716474647931,-1407.68,0.00023047,4]
[327776818,1716474647941,-500.0,0.00023047,4]
[327776819,1716474647951,-500.0,0.00023047,4]
[327776820,1716474647961,-859.25,0.00023047,4]
[327776821,1716474647971,-500.0,0.00023047,4]
[327776822,1716474647981,-500.0,0.00023047,4]
[327776823,1716474647991,-500.0,0.00023047,4]
[327776824,1716474648001,-3433.16,0.00023047,4]
[327776825,1716474648011,-1411.57,0.00023047,4]
[327776826,1716474648021,-564.11,0.00023047,4]
[327776827,1716474648031,-1217.67,0.00023047,4]
[327776828,1716474648041,-166.66666666,0.0002307,2]
[327776829,1716474648051,-196.79428385,0.00023078,2]
[327776830,1716474648063,-500.0,0.00023082,6]
[327776831,1716474648073,-500.0,0.00023082,6]
[327776832,1716474648082,-500.0,0.00023082,6]
[327776833,1716474648094,-612.95,0.00023082,6]
[327776834,1716474648104,-1629.21,0.00023082,6]
[327776835,1716474648114,-1165.96,0.00023082,6]
[327776836,1716474648125,-500.0,0.00023082,6]
[327776837,1716474648135,-500.0,0.00023082,6]
[327776838,1716474648145,-976.18,0.00023082,6]
[327776839,1716474648155,-500.0,0.00023082,6]
[327776840,1716474648165,-500.0,0.00023082,6]
[327776841,1716474648175,-1407.58,0.00023082,6]
[327776842,1716474648184,-599.75,0.00023095,6]
[327776843,1716474648196,-500.0,0.00023095,6]
[327776844,1716474648206,-500.0,0.00023095,6]
[327776845,1716474648215,-842.03,0.00023095,6]
[327776846,1716474648225,-677.55,0.00023095,6]
[327776847,1716474648235,-1687.84,0.00023095,6]
[327776848,1716474648244,-829.03,0.00023095,6]
[327776849,1716474648254,-2079.91,0.00023095,6]
[327776850,1716474648264,-1221.63,0.00023095,6]
[327776851,1716474648273,-825.32,0.00023095,6]
[327776852,1716474648284,-733.32,0.00023095,6]
[327776853,1716474648294,-2305.32,0.00023095,6]
[327776854,1716474648304,-1069.99,0.00023095,6]
[327776855,1716474648315,-1147.11714083,0.00023102,2]
[327776856,1716474648325,-624.0,0.00023106,2]
[327776857,1716474648335,-160.57154212,0.00023106,2]
[327776858,1716474648347,-274.08440572,0.00023107,2]
[327776859,1716474648356,-153.62237173,0.00023113,2]
[327776860,1716474648366,-500.0,0.00023169,6]
[327776861,1716474648375,-918.1,0.00023169,6]
[327776862,1716474648384,-718.72,0.00023169,6]
[327776863,1716474648394,-559.96551747,0.00023169,6]
[327776864,1716474648404,-946.25,0.0002317,6]
[327776865,1716474648414,-749.7,0.0002317,6]
[327776866,1716474648425,-13459.97,0.0002317,6]
[327776867,1716474648435,-500.0,0.0002317,6]
[327776868,1716474648445,-732.5,0.0002317,6]
[327776869,1716474648455,-504.6,0.0002317,6]
[327776870,1716474648466,-500.0,0.0002317,6]
[327776871,1716474648697,-500.0,0.0002317,6]
[327776872,1716474648717,-500.0,0.0002317,6]
[327776873,1716474648726,-599.54,0.0002317,6]
[327776874,1716474648736,-660.2,0.0002317,6]
[327776875,1716474648745,-414.51103705,0.00023171,3]
[327776876,1716474648756,-500.0,0.00023171,3]
[327776877,1716474648769,-579.38,0.00023171,3]
[327776878,1716474648779,-500.0,0.00023171,3]
[327776879,1716474648790,-512.34035617,0.00023171,3]
[327776880,1716474648800,-500.0,0.00023171,3]
[327776881,1716474648812,-512.10357826,0.00023171,3]
[327776882,1716474648822,-500.0,0.00023171,3]
[327776883,1716474648832,-267.55,0.00023171,3]
[327776884,1716474648847,-500.0,0.00023171,3]
[327776885,1716474648858,-500.0,0.00023171,3]
[327776886,1716474648868,-500.0,0.00023171,3]
[327776887,1716474648878,-500.0,0.00023171,3]
[327776888,1716474648888,-737.15,0.00023171,3]
[327776889,1716474648898,-500.0,0.00023171,3]
[327776890,1716474648908,-339.77022916,0.00023171,3]
[327776891,1716474648918,-500.0,0.00023171,3]
[327776892,1716474648927,-500.0,0.00023171,3]
[327776893,1716474648938,-500.0,0.00023171,3]
[327776894,1716474648948,-500.0,0.00023171,3]
[327776895,1716474648958,-1315.11,0.00023171,3]
[327776896,1716474648968,-500.0,0.00023171,3]
[327776897,1716474648978,-732.48,0.00023171,3]
[327776898,1716474648987,-500.0,0.00023171,3]
[327776899,1716474648997,-500.0,0.00023171,3]
[327776900,1716474649007,-500.0,0.00023171,3]
[327776901,1716474649018,-500.0,0.00023171,3]
[327776902,1716474649028,-500.0,0.00023171,3]
[327776903,1716474649038,-500.0,0.00023171,3]
[327776904,1716474649048,-500.0,0.00023171,3]
[327776905,1716474649058,-500.0,0.00023171,3]
[327776906,1716474649068,-515.91887178,0.00023171,3]
[327776907,1716474649078,-500.0,0.00023171,3]
[327776908,1716474649087,-1332.44,0.00023171,3]
[327776909,1716474649101,-617.1,0.00023171,3]
[327776910,1716474649111,-500.0,0.00023171,3]
[327776911,1716474649120,-500.0,0.00023171,3]
[327776912,1716474649129,-500.0,0.00023171,3]
[327776913,1716474649139,-1056.78,0.00023171,3]
[327776914,1716474649148,-2579.0,0.00023171,3]
[327776915,1716474649157,-2219.23,0.00023171,3]
[327776916,1716474649167,-500.0,0.00023171,3]
[327776917,1716474649176,-3911.65,0.00023171,3]
[327776918,1716474649186,-914.43,0.00023171,3]
[327776919,1716474649196,-500.0,0.00023171,3]
[327776920,1716474649205,-2418.3,0.00023171,3]
[327776921,1716474649215,-3511.33,0.00023171,3]
[327776922,1716474649225,-820.48,0.00023171,3]
[327776923,1716474649235,-500.0,0.00023171,3]
[327776924,1716474649245,-548.66005183,0.00023171,3]
[327776925,1716474649254,-500.0,0.00023171,3]
[327776926,1716474649264,-6557.03,0.00023171,3]
[327776927,1716474649273,-969.47,0.00023171,3]
[327776928,1716474649283,-6030.12,0.00023171,3]
[327776929,1716474649293,-600.27296182,0.00023171,3]
[327776930,1716474649303,-500.0,0.00023171,3]
[327776931,1716474649313,-500.0,0.00023171,3]
[327776932,1716474649323,-500.0,0.00023171,3]
[327776933,1716474649333,-500.0,0.00023171,3]
[327776934,1716474649345,-500.0,0.00023171,3]
[327776935,1716474649355,-443.59014799,0.00023171,3]
[327776936,1716474649364,-962.14,0.00023171,3]
[327776937,1716474649374,-500.0,0.00023171,3]
[327776938,1716474649383,-500.0,0.00023171,3]
[327776939,1716474649392,-2690.75,0.00023171,3]
[327776940,1716474649402,-500.0,0.00023171,3]
[327776941,1716474649412,-500.0,0.00023171,3]
[327776942,1716474649421,-1612.03,0.00023171,3]
[327776943,1716474649431,-678.84,0.00023171,3]
[327776944,1716474649442,-150.97582733,0.00023176,2]
[327776945,1716474649452,-322.94582393,0.00023182,2]
[327776946,1716474649462,-434.95870708,0.00023222,2]
[327776947,1716474649472,-1147.11714083,0.00023235,2]
[327776948,1716474649481,-274.08440572,0.00023271,2]
[327776949,1716474649491,-153.62237173,0.00023276,2]
[327776950,1716474649501,-444.23409727,0.00023287,7]
[327776951,1716474649510,-500.0,0.00023287,7]
[327776952,1716474649520,-412.29505742,0.00023287,7]
[327776953,1716474649530,-500.0,0.00023287,7]
[327776954,1716474649540,-500.0,0.00023287,7]
[327776955,1716474649550,-500.0,0.00023287,7]
[327776956,1716474649559,-500.0,0.00023287,7]
[327776957,1716474649570,-687.08,0.00023287,7]
[327776958,1716474649579,-500.0,0.00023287,7]
[327776959,1716474649589,-500.0,0.00023287,7]
[327776960,1716474649604,-500.0,0.00023287,7]
[327776961,1716474649614,-500.0,0.00023287,7]
[327776962,1716474649624,-500.0,0.00023287,7]
[327776963,1716474649635,-500.0,0.00023287,7]
[327776964,1716474649645,-1309.59,0.00023287,7]
[327776965,1716474649655,-500.0,0.00023287,7]
[327776966,1716474649665,-500.0,0.00023287,7]
[327776967,1716474649675,-500.0,0.00023287,7]
[327776968,1716474649685,-723.04,0.00023287,7]
[327776969,1716474649694,-6622.34,0.00023287,7]
[327776970,1716474649704,-500.0,0.00023287,7]
[327776971,1716474649714,-500.0,0.00023287,7]
[327776972,1716474649723,-2046.21,0.00023287,7]
[327776973,1716474649734,-1289.07,0.00023287,7]
[327776974,1716474649743,-500.0,0.00023287,7]
[327776975,1716474649753,-597.78,0.00023287,7]
[327776976,1716474649768,-500.0,0.00023287,7]
[327776977,1716474649778,-598.18,0.00023287,7]
[327776978,1716474649788,-616.78095835,0.00023287,7]
[327776979,1716474649799,-738.59,0.00023287,7]
[327776980,1716474649808,-500.15,0.00023287,7]
[327776981,1716474649817,-236.59380653,0.00023287,7]
[327776982,1716474649827,-500.0,0.00023287,7]
[327776983,1716474649836,-5097.04,0.00023287,7]
[327776984,1716474649851,-500.0,0.00023287,7]
[327776985,1716474649860,-500.0,0.00023287,7]
[327776986,1716474649871,-525.39,0.00023287,7]
[327776987,1716474649880,-500.0,0.00023287,7]
[327776988,1716474649890,-500.0,0.00023287,7]
[327776989,1716474649899,-500.0,0.00023287,7]
[327776990,1716474649909,-500.0,0.00023287,7]
[327776991,1716474649919,-500.0,0.00023287,7]
[327776992,1716474649929,-500.0,0.00023287,7]
[327776993,1716474649939,-500.0,0.00023287,7]
[327776994,1716474649950,-500.0,0.00023287,7]
[327776995,1716474649959,-500.0,0.00023287,7]
[327776996,1716474649969,-1000.0,0.00023287,7]
[327776997,1716474649978,-500.0,0.00023287,7]
[327776998,1716474649988,-465.11678126,0.00023287,7]
[327776999,1716474649998,-667.82,0.00023287,7]
[327777000,1716474650009,-500.0,0.00023287,7]
[327777001,1716474650019,-500.0,0.00023287,7]
[327777002,1716474650029,-500.0,0.00023287,7]
[327777003,1716474650039,-648.69,0.00023287,7]
[327777004,1716474650051,-500.0,0.00023287,7]
[327777005,1716474650061,-500.0,0.00023287,7]
[327777006,1716474650071,-2396.0,0.00023299,2]
[327777007,1716474650080,-809.0,0.00023299,2]
[327777008,1716474650090,-1138.0,0.00023299,2]
[327777009,1716474650103,-3524.0,0.000233,3]
[327777010,1716474650112,-1407.68,0.00023321,5]
[327777011,1716474650121,-500.0,0.00023321,5]
[327777012,1716474650131,-500.0,0.00023321,5]
[327777013,1716474650140,-859.25,0.00023321,5]
[327777014,1716474650150,-500.0,0.00023321,5]
[327777015,1716474650160,-500.0,0.00023321,5]
[327777016,1716474650170,-301.85422672,0.00023321,5]
[327777017,1716474650180,-3433.16,0.00023321,5]
[327777018,1716474650190,-1411.57,0.00023321,5]
[327777019,1716474650199,-564.11,0.00023321,5]
[327777020,1716474650209,-1217.67,0.00023321,5]
[327777021,1716474650219,-432.74590031,0.00023345,2]
[327777022,1716474650228,-166.66666668,0.00023347,2]
[327777023,1716474650238,-153.62237173,0.00023349,2]
[327777024,1716474650248,-500.0,0.00023356,7]
[327777025,1716474650258,-500.0,0.00023356,7]
[327777026,1716474650267,-500.0,0.00023356,7]
[327777027,1716474650277,-612.95,0.00023356,7]
[327777028,1716474650287,-1629.21,0.00023356,7]
[327777029,1716474650296,-1165.96,0.00023356,7]
[327777030,1716474650306,-500.0,0.00023356,7]
[327777031,1716474650316,-500.0,0.00023356,7]
[327777032,1716474650325,-976.18,0.00023356,7]
[327777033,1716474650335,-500.0,0.00023356,7]
[327777034,1716474650346,-500.0,0.00023356,7]
[327777035,1716474650356,-1407.58,0.00023356,7]
[327777036,1716474650365,-152.73750917,0.00023364,2]
[327777037,1716474650374,-599.75,0.00023369,7]
[327777038,1716474650384,-500.0,0.00023369,7]
[327777039,1716474650393,-500.0,0.00023369,7]
[327777040,1716474650403,-842.03,0.00023369,7]
[327777041,1716474650412,-677.55,0.00023369,7]
[327777042,1716474650421,-1687.84,0.00023369,7]
[327777043,1716474650431,-829.03,0.00023369,7]
[327777044,1716474650440,-2079.91,0.00023369,7]
[327777045,1716474650450,-1221.63,0.00023369,7]
[327777046,1716474650459,-825.32,0.00023369,7]
[327777047,1716474650469,-733.32,0.00023369,7]
[327777048,1716474650478,-2305.32,0.00023369,7]
[327777049,1716474650488,-1069.99,0.00023369,7]
[327777050,1716474650498,-153.554332,0.00023373,2]
[327777051,1716474650507,-150.97582733,0.00023376,2]
[327777052,1716474650517,-166.66666666,0.00023381,2]
[327777053,1716474650527,-2005.18444528,0.000234,2]
[327777054,1716474650536,-500.0,0.00023443,7]
[327777055,1716474650545,-918.1,0.00023443,7]
[327777056,1716474650555,-718.72,0.00023443,7]
[327777057,1716474650564,-946.25,0.00023444,7]
[327777058,1716474650574,-749.7,0.00023444,7]
[327777059,1716474650585,-153.62237173,0.00023444,2]
[327777060,1716474650596,-13459.97,0.00023444,7]
[327777061,1716474650605,-500.0,0.00023444,7]
[327777062,1716474650614,-732.5,0.00023444,7]
[327777063,1716474650623,-504.6,0.00023444,7]
[327777064,1716474650633,-500.0,0.00023444,7]
[327777065,1716474650642,-500.0,0.00023444,7]
[327777066,1716474650652,-500.0,0.00023444,7]